bitfinex/quotes_ETHUSD_20241203
["timestamp","ask_amount","ask_price","bid_price","bid_amount"]
[1733194725336,0.54749827,3644.6,3644.5,0.03811112]
[1733194725552,1.2793,3644.8,3644.6,2.74375]
[1733194725713,1.2793,3644.8,3644.1,2.74416]
[1733194726041,2.63651555,3644.6,3644.1,2.74416]
[1733194726542,2.63651555,3644.6,3644.4,2.74393]
[1733194726847,2.63651555,3644.6,3644.5,2.74386]
[1733194727205,2.63651555,3644.6,3644.5,3.419769]
[1733194727446,2.63651555,3644.6,3644.0,0.75]
[1733194727737,2.63651555,3644.2,3644.1,2.74416]
[1733194729244,2.63651555,3644.6,3644.1,2.74416]
[1733194729460,2.63651555,3644.6,3644.4,2.74386]
[1733194729800,2.63651555,3644.6,3644.2,2.74408]
[1733194729997,0.55,3644.5,3644.0,3.49422]
[1733194730303,3.18651555,3644.1,3644.0,0.75]
[1733194735957,3.18651555,3644.1,3644.0,0.78871509]
[1733194739971,3.18651555,3644.1,3644.0,0.75]
[1733194740333,3.18651555,3644.1,3644.0,0.78899909]
[1733194740553,4.84405224,3644.1,3644.0,0.75]
[1733194741268,4.84405224,3644.1,3471.4,0.03101113]
[1733194741269,1.2098,3643.2,3642.2,2.74555]
[1733194741434,0.55,3643.1,3641.9,1.2448]
[1733194741628,0.945458,3643.1,3642.3,0.03802373]
[1733194741828,0.945458,3643.1,3642.1,2.74564]
[1733194742266,0.945458,3643.1,3642.2,0.03804391]
[1733194742467,2.63651555,3642.3,3642.2,0.03804391]
[1733194742627,0.55,3642.2,3641.4,1.2949]
[1733194742971,0.55,3642.2,3642.0,2.74573]
[1733194744172,0.55,3642.2,3641.5,2.74612]
[1733194744540,0.55,3642.2,3642.1,2.74566]
[1733194744855,2.63651555,3642.3,3642.2,4.03209]
[1733194746095,2.63651555,3643.1,3643.0,2.74499]
[1733194746440,3.92281555,3643.1,3642.6,2.74525]
[1733194746641,2.63651555,3642.7,3642.6,2.74525]
[1733194746893,2.63651555,3642.7,3642.2,2.74556]
[1733194746894,2.63651555,3642.7,3642.3,2.74547]
[1733194747186,2.63651555,3643.5,3642.0,2.74573]
[1733194747187,3.92281555,3642.4,3642.0,2.74573]
[1733194747355,0.55,3642.3,3641.4,1.2212]
[1733194747538,2.83651555,3643.5,3641.3,0.1554501]
[1733194747539,2.63651555,3642.1,3642.0,1.2212]
[1733194747741,2.63651555,3642.5,3642.4,2.74544]
[1733194749766,2.63651555,3642.9,3642.8,2.74514]
[1733194753113,2.63651555,3642.9,3642.8,2.7838399]
[1733194754976,1.1795,3644.5,3643.5,2.74461]
[1733194755180,2.63651555,3643.6,3643.3,2.74476]
[1733194755476,0.55,3643.5,3643.1,1.1775]
[1733194755677,2.9001671,3643.6,3643.1,1.1775]
[1733194755678,0.55,3643.6,3643.2,2.74483]
[1733194756325,0.55,3643.6,3642.8,1.1635]
[1733194756629,0.1,3644.9,3642.8,1.1635]
[1733194756630,2.63651555,3643.3,3643.2,2.74483]
[1733194756928,2.63651555,3643.7,3643.2,1.1635]
[1733194757094,2.63651555,3643.7,3643.6,2.74453]
[1733194757894,2.63651555,3644.1,3644.0,2.74423]
[1733194758938,1.1562,3644.7,3644.6,2.74378]
[1733194759105,3.79271555,3644.7,3644.6,2.74378]
[1733194759425,4.17198711,3644.7,3644.3,2.74394]
[1733194759626,4.72746941,3644.7,3643.7,1.1093]
[1733194759826,2.09095386,3644.7,3644.5,2.74385]
[1733194760133,0.55,3644.6,3643.7,1.1093]
[1733194760320,0.55,3644.6,3644.5,2.74386]
[1733194761413,3.18651555,3644.6,3644.5,2.74386]
[1733194762100,2.63651555,3644.6,3644.5,2.74386]
[1733194762526,0.55,3644.4,3643.8,2.74436]
[1733194762714,0.55,3644.4,3643.3,2.7447]
[1733194762715,2.63651555,3643.9,3643.0,1.1845]
[1733194763022,2.63651555,3643.9,3643.2,2.74483]
[1733194763411,2.63651555,3643.9,3643.3,2.74471]
[1733194763731,2.63651555,3643.9,3643.7,2.74439]
[1733194763890,2.63651555,3643.9,3643.0,1.1845]
[1733194764085,2.63651555,3643.9,3643.8,2.74438]
[1733194764837,3.18651555,3643.9,3643.8,2.74438]
[1733194764991,3.18651555,3643.9,3643.6,2.74451]
[1733194764992,2.63651555,3643.9,3643.6,2.74451]
[1733194765846,2.63651555,3643.9,3643.3,2.74474]
[1733194766006,2.63651555,3643.9,3643.0,1.577455]
[1733194766207,0.55,3643.8,3643.5,2.74454]
[1733194766601,0.86865156,3643.8,3643.5,2.74454]
[1733194767535,0.86865156,3643.8,3643.6,2.74453]
[1733194767721,0.86865156,3643.8,3643.4,2.74468]
[1733194768125,0.86865156,3643.8,3643.5,0.03707465]
[1733194768503,0.86865156,3643.8,3643.4,2.74468]
[1733194768847,0.46884671,3643.7,3643.5,2.78164465]
[1733194769131,0.55,3643.8,3643.5,2.78164465]
[1733194770950,0.55,3643.8,3643.6,2.74453]
[1733194771326,0.55,3643.8,3643.7,0.03735296]
[1733194771663,0.55,3643.8,3643.5,2.74455]
[1733194771872,0.55,3643.8,3643.7,0.03735296]
[1733194772030,0.55,3643.8,3643.6,2.78190313]
[1733194773563,0.42949155,3644.3,3643.6,2.78190313]
[1733194773564,1.1046,3644.7,3643.6,1.43966344]
[1733194773770,2.63651555,3644.7,3643.8,1.1241]
[1733194773950,2.63651555,3644.7,3644.5,2.74381]
[1733194774360,2.63651555,3644.7,3644.6,0.03724616]
[1733194775456,3.18651555,3644.7,3644.6,0.03724616]
[1733194775867,3.18651555,3644.7,3643.8,3.86843]
[1733194776053,3.18651555,3644.7,3644.6,2.74378]
[1733194776463,3.18651555,3644.7,3644.6,2.78076231]
[1733194779571,1.1291,3645.3,3645.1,2.74339]
[1733194779781,3.18651555,3645.2,3645.1,2.74339]
[1733194779955,3.18651555,3645.2,3644.6,2.74378]
[1733194780162,0.55,3645.1,3644.9,2.74354]
[1733194780484,0.55,3645.1,3645.0,2.74348]
[1733194781047,2.63651555,3645.2,3645.1,2.7434]
[1733194782246,0.54023768,3646.0,3645.1,4.21344]
[1733194782449,0.54023768,3646.0,3645.9,2.7428]
[1733194783280,0.54023768,3646.0,3645.9,2.77921184]
[1733194783483,1.09023768,3646.0,3645.9,2.77921184]
[1733194784790,0.55,3646.2,3645.9,0.03641184]
[1733194784991,0.55,3646.2,3646.0,2.7427]
[1733194785351,0.55,3646.2,3645.5,2.74303]
[1733194785352,0.55,3646.2,3646.1,0.03542106]
[1733194785901,0.55,3646.2,3645.9,2.74279]
[1733194786070,0.55,3646.2,3646.1,0.03542106]
[1733194786290,0.55,3646.2,3646.0,0.0354412]
[1733194786453,0.55,3646.2,3646.1,0.03542106]
[1733194786765,3.18651555,3646.2,3646.0,2.74271]
[1733194786963,3.18651555,3646.2,3646.1,0.03542106]
[1733194787398,3.18651555,3646.2,3645.9,2.74278]
[1733194787597,3.18651555,3646.2,3646.1,0.03542106]
[1733194787754,3.18651555,3646.2,3646.0,0.0354412]
[1733194787953,3.18651555,3646.2,3645.9,2.74278]
[1733194788154,3.18651555,3646.2,3646.1,0.03542106]
[1733194788350,3.18651555,3646.2,3646.0,0.0354412]
[1733194788576,0.55,3646.2,3646.1,2.77807106]
[1733194788779,3.17469516,3646.3,3646.2,2.74258]
[1733194789195,8.93,3647.0,3646.2,2.74258]
[1733194789196,2.63651555,3646.7,3646.2,2.77798093]
[1733194789490,0.56052598,3647.0,3646.5,1.185]
[1733194789792,2.63651555,3647.1,3646.6,0.03485278]
[1733194789965,2.63651555,3647.1,3646.9,2.74198]
[1733194790165,2.63651555,3647.1,3646.6,0.03485278]
[1733194790380,2.63651555,3647.5,3647.0,0.03477226]
[1733194790681,0.54076015,3647.2,3647.1,2.74184]
[1733194791187,2.63651555,3647.5,3647.1,0.03418535]
[1733194791412,2.63651555,3647.5,3647.4,2.74167]
[1733194791555,2.63651555,3647.5,3647.2,1.185]
[1733194791556,2.63651555,3648.3,3648.1,2.74107]
[1733194791752,2.63651555,3648.3,3647.2,1.185]
[1733194791753,0.269406,3648.2,3647.4,0.03412498]
[1733194791999,2.63651555,3647.7,3647.2,1.185]
[1733194792290,2.63651555,3647.7,3647.5,2.7416]
[1733194792659,2.63651555,3647.7,3647.6,0.03384619]
[1733194793054,3.56783711,3647.7,3647.6,0.03384619]
[1733194793295,0.55,3647.6,3647.1,2.74189]
[1733194793489,0.55,3647.2,3646.6,1.185]
[1733194793799,0.55,3647.2,3646.8,2.74209]
[1733194794209,1.15964444,3648.5,3647.8,1.1504]
[1733194794372,0.05754444,3648.5,3648.4,2.74092]
[1733194794693,0.59285776,3648.5,3648.4,2.74092]
[1733194795194,0.38048177,3648.5,3648.4,2.74092]
[1733194795798,0.93048177,3648.5,3648.4,2.74092]
[1733194798315,0.93048177,3648.5,3648.4,0.0324973]
[1733194799400,0.93048177,3648.5,3647.8,1.1504]
[1733194799585,2.63651555,3648.3,3647.8,1.1504]
[1733194799787,2.63651555,3648.3,3648.2,2.74105]
[1733194800308,2.63651555,3648.3,3648.1,2.74114]
[1733194800609,2.63651555,3648.3,3648.2,2.74107]
[1733194800771,2.63651555,3648.3,3648.0,2.74122]
[1733194800973,2.63651555,3648.3,3648.1,2.74113]
[1733194801169,2.63651555,3648.3,3647.8,1.1504]
[1733194801400,2.63651555,3648.3,3648.2,2.74107]
[1733194802271,3.18651555,3648.3,3648.2,2.74107]
[1733194802474,2.63651555,3648.3,3648.2,2.74107]
[1733194805040,3.18555967,3648.7,3648.6,2.74077]
[1733194805196,2.63651555,3648.7,3648.6,2.74077]
[1733194805732,3.01037711,3648.7,3647.6,1.1238]
[1733194805941,1.2205,3647.9,3646.4,1.1238]
[1733194806093,2.63651555,3647.1,3646.7,2.7422]
[1733194806295,2.63651555,3647.1,3647.0,2.74197]
[1733194806495,2.63651555,3647.1,3647.0,3.402767]
[1733194808208,2.63651555,3647.5,3647.4,2.74167]
[1733194808412,2.63651555,3647.5,3647.4,3.84557]
[1733194809011,2.63651555,3648.1,3647.4,1.1039]
[1733194809221,2.63651555,3648.6,3648.3,2.74099]
[1733194810351,0.55,3648.5,3648.1,2.74111]
[1733194810561,0.55,3648.5,3647.7,2.7414]
[1733194810706,0.55,3648.5,3648.1,2.74113]
[1733194811359,2.63651555,3648.6,3648.4,2.74087]
[1733194811505,2.63651555,3648.6,3648.1,2.74109]
[1733194811704,1.7415,3648.1,3647.2,1.1583]
[1733194811905,1.7415,3648.1,3646.2,0.2]
[1733194811906,3.81991555,3647.3,3646.6,3.93641]
[1733194812118,2.63651555,3646.8,3646.7,2.7422]
[1733194812557,2.63651555,3647.2,3647.1,2.74186]
[1733194813510,0.55,3647.1,3646.3,1.1844]
[1733194813709,3.12272659,3646.7,3646.6,2.74228]
[1733194813951,3.12272659,3647.1,3647.0,2.74197]
[1733194814252,3.12272659,3647.5,3647.4,2.74167]
[1733194816038,3.12272659,3647.9,3647.8,2.74137]
[1733194817360,8.93,3648.8,3647.8,2.74137]
[1733194817361,3.12272659,3648.3,3648.2,2.74107]
[1733194817848,3.12272659,3648.3,3648.2,2.7701558]
[1733194822438,3.12272659,3648.3,3648.2,0.0290858]
[1733194822857,3.12272659,3648.3,3647.7,1.1586]
[1733194823037,3.12272659,3648.3,3648.2,0.02911062]
[1733194823235,3.12272659,3648.3,3648.1,2.74115]
[1733194823559,3.12272659,3648.3,3648.2,0.02911062]
[1733194823760,3.12272659,3648.3,3648.2,2.77018062]
[1733194826539,3.12272659,3648.3,3648.2,0.02911062]
[1733194827041,3.12272659,3648.3,3648.1,2.74115]
[1733194827262,3.12272659,3648.3,3648.2,0.02913543]
[1733194829162,3.12272659,3648.3,3648.2,2.77020543]
[1733194833568,2.64070377,3648.3,3648.2,2.77020543]
[1733194834599,2.64070377,3648.3,3648.2,0.02913543]
[1733194834751,0.55,3648.2,3647.1,1.1713]
[1733194834957,2.64070377,3647.2,3647.1,2.7419]
[1733194835483,2.64070377,3647.2,3646.6,2.74222]
[1733194835484,2.64070377,3647.2,3646.9,2.74204]
[1733194835654,2.64070377,3647.0,3646.8,2.74211]
[1733194836014,2.64070377,3647.0,3646.6,2.74227]
[1733194836156,2.64070377,3646.5,3646.4,3.91373]
[1733194836362,2.64070377,3646.5,3646.4,2.74243]
[1733194836758,2.64070377,3646.5,3646.4,2.76895792]
[1733194836987,2.64070377,3646.5,3646.4,0.02652792]
[1733194837197,3.19070377,3646.5,3645.7,3.90788]
[1733194837401,1.1513,3646.7,3645.7,3.90788]
[1733194837402,2.64070377,3646.0,3645.9,2.74274]
[1733194837702,0.55,3645.9,3644.9,3.9085]
[1733194837857,2.64070377,3645.2,3645.1,2.7434]
[1733194840161,2.64070377,3645.6,3645.5,2.7431]
[1733194842373,2.64070377,3645.6,3644.9,1.165]
[1733194842618,2.64070377,3645.0,3644.9,2.74355]
[1733194844511,0.55,3645.9,3644.6,1.1069]
[1733194844710,0.55,3645.9,3645.5,2.74307]
[1733194845215,0.55,3645.9,3644.7,2.74371]
[1733194845418,0.55,3645.9,3645.7,2.74294]
[1733194845984,0.55,3645.9,3645.4,2.74311]
[1733194846186,2.64070377,3645.5,3645.4,2.74311]
[1733194847527,2.64070377,3645.5,3644.8,0.385061]
[1733194847528,0.55,3645.4,3644.8,0.385061]
[1733194847730,0.55,3645.9,3645.1,2.7434]
[1733194847929,0.55,3645.7,3645.1,2.7434]
[1733194848130,0.55,3645.7,3645.3,2.74325]
[1733194848590,0.55,3645.9,3645.3,2.74325]
[1733194848790,0.55,3645.3,3645.0,2.74341]
[1733194848991,1.5863,3645.3,3644.6,1.0314]
[1733194849187,1.5863,3645.3,3644.8,2.74362]
[1733194850637,1.5863,3645.3,3644.9,2.74355]
[1733194850839,3.67534577,3645.0,3644.9,2.74355]
[1733194851037,0.55,3644.9,3644.5,2.74382]
[1733194851207,3.67534577,3644.6,3644.5,2.74382]
[1733194851425,1.577,3644.5,3644.2,2.74403]
[1733194851607,3.12534577,3644.3,3643.9,2.74431]
[1733194851812,3.12534577,3644.3,3644.0,0.30463172]
[1733194852507,3.12534577,3644.3,3644.2,2.74408]
[1733194852724,3.67534577,3644.3,3644.2,2.74408]
[1733194852995,3.67534577,3644.3,3644.2,2.7742404]
[1733194853236,3.67534577,3644.3,3644.2,0.0301604]
[1733194853742,3.67534577,3644.3,3642.7,2.74516]
[1733194853743,0.55,3644.2,3643.2,1.1221]
[1733194853924,3.12534577,3643.7,3643.6,2.74453]
[1733194854237,3.67534577,3643.7,3643.5,2.74456]
[1733194854391,0.55,3643.6,3643.5,2.74456]
[1733194856195,3.12534577,3643.7,3643.6,2.74453]
[1733194856743,4.75934577,3643.7,3643.6,2.74453]
[1733194856896,3.67534577,3643.7,3643.6,2.74453]
[1733194857937,3.12534577,3644.1,3643.6,0.548924]
[1733194858231,3.12534577,3644.1,3644.0,2.74423]
[1733194859240,3.12534577,3644.6,3644.5,2.74381]
[1733194859838,3.67534577,3644.6,3644.5,2.74381]
[1733194861373,3.12534577,3645.0,3644.2,2.74407]
[1733194861571,3.12534577,3645.0,3644.9,2.74355]
[1733194861948,3.68370201,3645.4,3645.1,2.74338]
[1733194862844,0.55,3645.3,3645.2,2.74333]
[1733194863048,3.68370201,3645.4,3644.6,1.093]
[1733194863392,3.68370201,3645.4,3645.3,2.74325]
[1733194863980,3.12534577,3645.4,3645.3,2.74325]
[1733194865277,3.12534577,3645.8,3645.7,2.74295]
[1733194866878,3.67534577,3645.8,3645.7,2.77295241]
[1733194867190,3.12534577,3645.8,3645.7,2.77295241]
[1733194869482,4.70414577,3645.8,3645.7,0.03000241]
[1733194869716,4.69442861,3645.8,3645.1,2.7434]
[1733194869885,2.64521403,3645.2,3645.1,2.7434]
[1733194870080,3.19521403,3645.2,3645.1,2.7434]
[1733194871583,0.55,3645.1,3644.6,1.0813]
[1733194871807,2.64521403,3644.8,3644.6,1.0813]
[1733194872192,2.64521403,3644.8,3644.7,2.74371]
[1733194874732,2.64521403,3644.8,3643.6,3.14609427]
[1733194874733,0.55,3644.7,3644.0,1.0966]
[1733194874936,1.6322,3644.7,3644.2,2.74401]
[1733194875500,1.6322,3644.7,3643.7,3.841]
[1733194875701,1.6322,3644.7,3644.2,2.74406]
[1733194875939,1.6322,3644.7,3644.3,2.74399]
[1733194876308,2.64521403,3644.4,3644.3,2.74399]
[1733194876474,2.64521403,3644.8,3644.7,2.74371]
[1733194876769,2.64521403,3644.8,3644.2,1.12]
[1733194876969,2.64521403,3644.5,3643.4,1.12]
[1733194877120,2.64521403,3644.5,3644.3,2.74398]
[1733194877121,0.55,3644.4,3644.3,2.74398]
[1733194877453,0.55,3644.4,3644.3,2.77131295]
[1733194878571,2.64521403,3645.0,3644.5,2.74386]
[1733194878853,2.64521403,3645.0,3644.6,2.7709278]
[1733194879160,2.64521403,3644.7,3644.6,0.0272178]
[1733194879452,2.64521403,3644.7,3644.2,2.74407]
[1733194879662,2.64521403,3644.7,3644.6,0.02728243]
[1733194879871,2.64521403,3644.7,3644.2,2.74401]
[1733194880073,2.64521403,3644.7,3644.6,0.02788373]
[1733194880268,2.64521403,3644.7,3643.7,1.0657]
[1733194880269,0.55,3644.6,3644.0,2.7442]
[1733194880564,1.065,3644.2,3643.7,2.74446]
[1733194880767,1.065,3644.2,3644.0,2.74417]
[1733194880951,0.55,3644.1,3644.0,2.74417]
[1733194881876,1.0467,3643.5,3642.2,2.74559]
[1733194882025,2.64521403,3642.5,3641.9,1.0569]
[1733194882370,2.64521403,3642.5,3642.4,2.74544]
[1733194882950,1.0429,3643.2,3642.4,2.74544]
[1733194882951,2.64521403,3642.9,3642.7,2.74514]
[1733194883157,0.55,3642.8,3642.3,2.74544]
[1733194883355,0.55,3642.8,3642.3,2.74551]
[1733194883726,0.55,3642.8,3641.9,1.0569]
[1733194883960,0.55,3642.8,3642.5,2.74536]
[1733194884403,0.55,3642.8,3642.0,2.74574]
[1733194884573,0.55,3642.8,3642.6,2.74528]
[1733194885155,0.55,3642.8,3642.7,2.74521]
[1733194885602,2.64521403,3642.9,3642.1,0.02745183]
[1733194885800,0.55,3642.9,3642.8,2.74514]
[1733194885968,2.64521403,3643.3,3642.8,2.74514]
[1733194886319,2.64521403,3643.7,3643.6,2.74452]
[1733194887400,2.64521403,3644.1,3643.4,1.0832]
[1733194887602,3.12675578,3644.4,3643.4,1.0832]
[1733194887807,3.12675578,3644.4,3644.2,2.74407]
[1733194888008,3.12675578,3644.4,3644.3,2.74401]
[1733194888579,0.41957478,3644.7,3644.4,2.74393]
[1733194888800,1.0584,3645.6,3644.1,1.0297]
[1733194889005,3.12675578,3645.0,3644.8,2.74357]
[1733194889205,3.12675578,3645.0,3644.9,2.74355]
[1733194889579,4.18515578,3645.6,3645.5,2.7431]
[1733194889820,4.18515578,3645.6,3644.7,1.1068]
[1733194889821,3.64719933,3645.6,3644.7,1.1068]
[1733194890025,3.64719933,3645.6,3645.3,2.74324]
[1733194890193,3.64719933,3645.6,3645.4,0.02493949]
[1733194890387,3.64719933,3645.6,3645.4,2.76810949]
[1733194890589,3.12675578,3645.6,3645.5,2.7431]
[1733194890787,3.12675578,3646.0,3645.8,2.7428]
[1733194891127,3.12675578,3646.0,3645.9,0.03071299]
[1733194891307,3.12675578,3646.0,3645.9,2.77351299]
[1733194892208,3.12675578,3646.6,3646.4,2.7424]
[1733194892447,0.42444558,3646.5,3646.4,2.7424]
[1733194893956,0.97444558,3646.5,3646.4,2.7424]
[1733194895360,0.55,3646.5,3646.4,2.7424]
[1733194895560,0.55,3646.2,3644.6,1.0588]
[1733194895709,0.55,3645.2,3645.1,2.7434]
[1733194896310,3.12675578,3645.8,3645.1,2.7434]
[1733194896547,3.67675578,3645.8,3645.7,2.74295]
[1733194897017,3.67675578,3645.8,3645.7,2.78827526]
[1733194897663,3.67675578,3645.8,3645.7,2.99087928]
[1733194899558,0.55,3646.1,3646.0,2.74273]
[1733194899733,0.55,3646.1,3646.0,0.20253062]
[1733194899937,0.55,3646.1,3646.0,0.04521197]
[1733194900242,0.55,3646.1,3645.9,2.74278]
[1733194900415,0.55,3646.1,3646.0,0.04521197]
[1733194900818,0.55,3646.1,3645.9,2.74278]
[1733194901049,0.55,3646.1,3645.4,1.0186]
[1733194901258,0.55,3646.1,3646.0,2.74273]
[1733194902541,4.55,3646.1,3646.0,2.74273]
[1733194906415,4.55,3646.1,3646.0,3.83833]
[1733194907570,4.0,3646.1,3646.0,4.496453]
[1733194908880,3.12675578,3647.3,3647.0,2.74194]
[1733194909085,4.0,3647.0,3646.6,2.74226]
[1733194909299,3.12675578,3646.7,3646.6,2.74226]
[1733194909579,2.64268597,3646.7,3646.6,2.74228]
[1733194910433,3.19268597,3646.7,3646.6,2.74228]
[1733194910806,7.19268597,3646.7,3646.6,2.74228]
[1733194911013,7.19268597,3646.7,3646.6,3.290753]
[1733194911609,7.19268597,3646.7,3646.6,4.403353]
[1733194911808,6.64268597,3646.7,3646.6,4.403353]
[1733194913204,7.19268597,3646.7,3646.6,3.290753]
[1733194913505,7.19268597,3646.7,3646.6,2.74228]
[1733194914428,0.55,3646.6,3645.9,3.81133]
[1733194914627,0.55,3646.2,3646.1,2.74262]
[1733194915544,4.55,3646.2,3646.1,2.74262]
[1733194918642,4.0,3646.2,3646.1,4.133982]
[1733194919251,4.0,3646.2,3646.1,3.016882]
[1733194919455,4.0,3646.2,3646.1,2.74262]
[1733194919609,4.0,3646.2,3645.9,2.74273]
[1733194919947,2.64268597,3646.0,3645.4,1.1171]
[1733194920135,4.0,3645.8,3645.4,1.1171]
[1733194920713,4.55,3645.8,3645.7,2.74295]
[1733194921413,4.55,3645.8,3645.7,3.403265]
[1733194922250,0.55,3645.7,3645.5,2.74309]
[1733194922455,0.55,3645.5,3645.3,2.74324]
[1733194922956,0.55,3645.5,3645.1,2.7434]
[1733194923160,3.19268597,3645.2,3645.1,2.7434]
[1733194923308,7.19268597,3645.2,3645.1,2.7434]
[1733194924933,4.55,3645.2,3645.1,2.7434]
[1733194925156,7.19268597,3645.2,3645.1,2.7434]
[1733194925368,7.19268597,3645.2,3645.1,4.04804]
[1733194925369,4.0,3645.2,3645.1,4.04804]
[1733194925581,2.62833,3645.2,3645.1,4.04804]
[1733194925726,2.64268597,3646.0,3645.9,2.7428]
[1733194926149,2.64268597,3646.0,3645.6,2.74296]
[1733194926348,1.085,3645.9,3645.0,1.0304]
[1733194926629,2.64268597,3645.4,3645.3,2.74322]
[1733194927126,3.19268597,3645.4,3645.3,2.74322]
[1733194927621,2.64268597,3646.1,3646.0,2.74265]
[1733194929635,3.19268597,3646.1,3646.0,2.74265]
[1733194930276,3.19268597,3646.1,3645.4,3.79891]
[1733194930572,0.84538202,3646.6,3645.4,2.74318]
[1733194930573,0.55,3645.5,3645.4,2.74318]
[1733194930929,0.55,3645.5,3645.2,2.74331]
[1733194931122,3.19268597,3645.3,3645.2,2.74331]
[1733194932727,0.55,3645.2,3644.5,3.7929]
[1733194932945,0.55,3645.2,3645.0,2.74347]
[1733194933302,0.55,3645.2,3644.7,2.74366]
[1733194933447,0.55,3645.2,3644.2,3.85025]
[1733194933448,3.19268597,3644.8,3644.2,3.85025]
[1733194933648,0.55,3644.7,3644.3,0.04492239]
[1733194933866,0.55,3644.7,3644.6,2.74378]
[1733194935761,0.55,3644.7,3644.3,2.74396]
[1733194935953,0.55,3644.7,3643.9,1.1623]
[1733194936151,0.55,3644.7,3644.3,2.78885239]
[1733194936352,0.55,3644.7,3644.0,2.74423]
[1733194936633,0.55,3644.7,3644.3,0.04492239]
[1733194936749,0.55,3644.7,3644.1,0.390653]
[1733194936952,3.19268597,3644.4,3644.3,2.78887239]
[1733194937154,3.19268597,3644.4,3644.3,2.74395]
[1733194937399,3.19268597,3644.4,3644.3,2.78887239]
[1733194937791,0.55,3644.7,3644.6,2.74378]
[1733194939392,2.64268597,3645.2,3645.1,2.7434]
[1733194939706,2.64268597,3645.6,3645.5,2.7431]
[1733194941282,2.64268597,3646.0,3645.9,2.74277]
[1733194941779,2.64268597,3646.4,3646.3,2.7425]
[1733194942095,2.64268597,3646.8,3646.5,2.74235]
[1733194943264,1.1553,3647.3,3646.5,2.74235]
[1733194943467,2.64268597,3646.9,3646.5,2.74235]
[1733194943727,2.64268597,3646.9,3646.5,3.94135]
[1733194944467,1.1553,3647.3,3646.5,3.94135]
[1733194944468,3.79798597,3647.3,3646.5,3.94135]
[1733194944713,1.33e-06,3646.6,3646.5,3.94135]
[1733194945016,1.33e-06,3646.6,3646.5,4.609735]
[1733194945171,1.33e-06,3646.6,3646.5,4.63715109]
[1733194948611,1.33e-06,3646.6,3646.5,4.83715109]
[1733194949607,1.33e-06,3646.6,3646.5,4.63715109]
[1733194949923,1.33e-06,3646.6,3646.5,2.74235]
[1733194958215,1.33e-06,3646.6,3646.5,3.94705]
[1733194959540,1.33e-06,3646.6,3646.5,2.74235]
[1733194961297,1.33e-06,3646.6,3646.5,2.94490455]
[1733194964599,3.11892542,3646.7,3646.5,2.94490455]
[1733194964799,3.66892542,3646.7,3646.6,0.20255455]
[1733194965332,3.66892542,3646.7,3646.6,2.94483455]
[1733194965839,3.66892542,3646.7,3646.6,0.20255455]
[1733194966008,0.55,3646.6,3646.5,2.74233]
[1733194966196,0.55,3646.6,3646.5,2.94523881]
[1733194966395,3.12029525,3647.1,3647.0,2.74197]
[1733194966598,3.12029525,3647.1,3647.0,2.94487881]
[1733194967122,1.1434,3647.4,3647.0,0.20290881]
[1733194967322,1.1434,3647.4,3646.5,0.29452388]
[1733194967323,3.12029525,3647.3,3647.1,0.20290881]
[1733194967524,3.12029525,3647.3,3647.2,0.20290881]
[1733194967731,3.12029525,3647.3,3647.1,0.20314247]
[1733194967732,0.55,3647.2,3647.1,0.20314247]
[1733194967900,0.55,3647.2,3647.1,0.20313953]
[1733194968743,0.55,3647.3,3647.1,0.20313953]
[1733194968927,0.55,3647.3,3647.2,2.94491953]
[1733194969643,2.64139949,3647.5,3647.4,2.74167]
[1733194969942,3.19139949,3647.5,3647.4,2.94480953]
[1733194973857,3.19139949,3647.5,3647.4,2.94539134]
[1733194974031,3.19139949,3647.5,3647.4,2.94537754]
[1733194975731,3.19139949,3647.5,3647.4,0.20370754]
[1733194976352,3.19139949,3647.5,3647.4,2.94537754]
[1733194977464,3.19139949,3647.5,3647.4,0.20370754]
[1733194979434,3.19139949,3647.5,3647.4,2.94537754]
[1733194981079,2.64139949,3647.5,3647.4,2.94537754]
[1733194981388,2.64139949,3647.9,3647.8,2.74137]
[1733194981534,2.64139949,3647.9,3647.8,2.94507754]
[1733194981739,2.64139949,3648.3,3648.2,2.74107]
[1733194981963,2.64139949,3648.3,3648.2,2.94477754]
[1733194982684,1.1083,3649.5,3648.2,1.88040929]
[1733194982979,2.64139949,3648.7,3648.6,2.74077]
[1733194983185,2.64139949,3648.7,3648.6,2.94447754]
[1733194986203,1.1083,3649.5,3649.4,2.74017]
[1733194986370,1.1083,3649.5,3649.4,0.20304509]
[1733194986567,2.64139949,3649.7,3649.4,0.20304509]
[1733194986902,2.64139949,3649.7,3649.6,2.74002]
[1733194987121,2.64139949,3650.0,3649.6,2.94306509]
[1733194987280,0.53505427,3650.3,3649.9,2.7398]
[1733194987281,2.64139949,3650.3,3649.9,2.7398]
[1733194987456,2.64139949,3650.3,3650.2,2.73957]
[1733194987663,6.64139949,3650.3,3649.6,3.93106]
[1733194988361,6.64139949,3650.3,3650.1,2.73964]
[1733194988660,4.0,3650.2,3650.1,2.73964]
[1733194989407,4.0,3650.2,3648.7,0.73675547]
[1733194989408,4.0,3650.2,3649.5,2.74008]
[1733194989706,4.0,3650.2,3648.4,2.74088]
[1733194989707,0.55,3649.5,3647.8,2.74137]
[1733194990005,2.64139949,3649.6,3647.8,2.74137]
[1733194990006,0.55,3649.3,3649.2,2.74032]
[1733194990212,0.55,3649.3,3648.5,1.1911]
[1733194990514,4.0,3649.2,3648.5,1.1911]
[1733194990664,2.64139949,3649.0,3648.5,1.1911]
[1733194990865,2.64139949,3649.0,3648.9,2.74055]
[1733194991715,6.64139949,3649.0,3648.9,2.74055]
[1733194994220,4.0,3649.0,3648.9,2.74055]
[1733194998391,4.0,3649.0,3648.9,4.394477]
[1733194999226,4.0,3649.0,3648.9,3.84635]
[1733194999433,4.0,3649.0,3648.9,2.74055]
[1733194999632,6.64139949,3649.0,3648.6,2.74077]
[1733194999792,2.64139949,3649.0,3648.2,3.93342]
[1733194999995,4.0,3648.9,3648.7,2.74067]